[Event "LASK Schackstudion IM Tournament"]
[Site "Lund, Sweden"]
[Date "2022.08.20"]
[Round "9.1"]
[White "Nord, Alexander"]
[Black "Larkin, Vadyslav"]
[Result "1/2-1/2"]
[TimeControl "90 minutes + 30 sec increment starting from move 1."]
[WhiteTitle "CM"]
[BlackTitle "IM"]
[WhiteFideId "1738135"]
[BlackFideId "14152894"]
[WhiteElo "2227"]
[BlackElo "2447"]

1. e4 {[%clk 01:30:53]} {[%emt 00:00:06]} c5 {[%clk 01:28:38]} {[%emt
00:02:23]} 2. Nf3 {[%clk 01:31:17]} {[%emt 00:00:05]} e6 {[%clk 01:29:03]}
{[%emt 00:00:05]} 3. g3 {[%clk 01:31:38]} {[%emt 00:00:09]} Nc6 {[%clk
01:29:16]} {[%emt 00:00:17]} 4. Bg2 {[%clk 01:32:00]} {[%emt 00:00:08]} Nf6
{[%clk 01:29:37]} {[%emt 00:00:09]} 5. Qe2 {[%clk 01:31:58]} {[%emt 00:00:31]}
d6 {[%clk 01:29:52]} {[%emt 00:00:16]} 6. O-O {[%clk 01:31:16]} {[%emt
00:01:11]} Be7 {[%clk 01:30:18]} {[%emt 00:00:04]} 7. c3 {[%clk 01:29:56]}
{[%emt 00:01:50]} Rb8 {[%clk 01:25:22]} {[%emt 00:05:26]} 8. d4 {[%clk
01:26:55]} {[%emt 00:03:30]} cxd4 {[%clk 01:25:22]} {[%emt 00:00:31]} 9. cxd4
{[%clk 01:27:14]} {[%emt 00:00:10]} d5 {[%clk 01:25:30]} {[%emt 00:00:23]} 10.
e5 {[%clk 01:23:55]} {[%emt 00:03:48]} Ne4 {[%clk 01:24:57]} {[%emt 00:01:03]}
11. Be3 {[%clk 01:08:37]} {[%emt 00:15:47]} O-O {[%clk 01:15:45]} {[%emt
00:09:42]} 12. Nbd2 {[%clk 01:07:16]} {[%emt 00:01:51]} Nxd2 {[%clk 01:10:10]}
{[%emt 00:06:06]} 13. Qxd2 {[%clk 01:07:32]} {[%emt 00:00:14]} Qa5 {[%clk
01:08:59]} {[%emt 00:01:41]} 14. Qd1 {[%clk 00:59:38]} {[%emt 00:08:22]} Qb4
{[%clk 01:01:51]} {[%emt 00:07:39]} 15. b3 {[%clk 00:53:27]} {[%emt 00:06:41]}
a5 {[%clk 01:01:33]} {[%emt 00:00:48]} 16. Ne1 {[%clk 00:53:06]} {[%emt
00:00:50]} Qb6 {[%clk 00:52:20]} {[%emt 00:09:43]} 17. Nd3 {[%clk 00:52:00]}
{[%emt 00:01:36]} f5 {[%clk 00:45:17]} {[%emt 00:07:35]} 18. g4 {[%clk
00:42:23]} {[%emt 00:10:06]} Nb4 {[%clk 00:44:01]} {[%emt 00:01:46]} 19. gxf5
{[%clk 00:23:44]} {[%emt 00:19:10]} Nxd3 {[%clk 00:38:59]} {[%emt 00:05:33]} 20.
Qxd3 {[%clk 00:20:40]} {[%emt 00:03:33]} Rxf5 {[%clk 00:39:20]} {[%emt
00:00:09]} 21. Rac1 {[%clk 00:18:47]} {[%emt 00:02:22]} Bd7 {[%clk 00:37:31]}
{[%emt 00:02:21]} 22. a4 {[%clk 00:18:11]} {[%emt 00:01:05]} Rff8 {[%clk
00:37:02]} {[%emt 00:00:59]} 23. Bh3 {[%clk 00:16:17]} {[%emt 00:02:23]} Rbc8
{[%clk 00:35:43]} {[%emt 00:01:50]} 24. Rxc8 {[%clk 00:14:32]} {[%emt
00:02:15]} Rxc8 {[%clk 00:35:41]} {[%emt 00:00:33]} 25. Rc1 {[%clk 00:14:54]}
{[%emt 00:00:07]} Rxc1+ {[%clk 00:34:44]} {[%emt 00:01:28]} 26. Bxc1 {[%clk
00:15:21]} {[%emt 00:00:01]} Bb4 {[%clk 00:29:57]} {[%emt 00:05:18]} 27. Be3
{[%clk 00:14:57]} {[%emt 00:00:53]} Qc6 {[%clk 00:27:33]} {[%emt 00:02:55]} 28.
Bg4 {[%clk 00:15:02]} {[%emt 00:00:24]} Be8 {[%clk 00:23:50]} {[%emt 00:04:14]}
29. Qb5 {[%clk 00:14:32]} {[%emt 00:01:01]} Kf7 {[%clk 00:11:06]} {[%emt
00:13:14]} 30. Qd3 {[%clk 00:10:14]} {[%emt 00:04:47]} Kg8 {[%clk 00:10:55]}
{[%emt 00:00:41]} 31. Qb5 {[%clk 00:10:30]} {[%emt 00:00:14]} Kf7 {[%clk
00:11:01]} {[%emt 00:00:24]} 32. Qd3 {[%clk 00:09:18]} {[%emt 00:01:42]} Kg8
{[%clk 00:10:16]} {[%emt 00:01:16]} 33. Qb5 {[%emt 00:00:07]} 1/2-1/2

[Event "LASK Schackstudion IM Tournament"]
[Site "Lund, Sweden"]
[Date "2022.08.20"]
[Round "9.2"]
[White "Storme, Isak"]
[Black "Jogstad, Martin"]
[Result "1/2-1/2"]
[TimeControl "90 minutes + 30 sec increment starting from move 1."]
[WhiteTitle "FM"]
[BlackTitle "FM"]
[WhiteFideId "1728113"]
[BlackFideId "1715364"]
[WhiteElo "2416"]
[BlackElo "2354"]

1. e4 {[%clk 01:30:58]} e5 {[%clk 01:30:36]} {[%emt 00:00:25]} 2. Nf3 {[%clk
01:31:23]} {[%emt 00:00:05]} Nc6 {[%clk 01:30:52]} {[%emt 00:00:14]} 3. Bb5
{[%clk 01:31:44]} {[%emt 00:00:07]} Nf6 {[%clk 01:30:59]} {[%emt 00:00:24]} 4.
O-O {[%clk 01:32:01]} {[%emt 00:00:14]} Nxe4 {[%clk 01:31:03]} {[%emt
00:00:26]} 5. Re1 {[%clk 01:32:14]} {[%emt 00:00:17]} Nd6 {[%clk 01:31:19]}
{[%emt 00:00:13]} 6. Nxe5 {[%clk 01:32:30]} {[%emt 00:00:14]} Be7 {[%clk
01:31:21]} {[%emt 00:00:28]} 7. Bf1 {[%clk 01:32:48]} {[%emt 00:00:12]} Nf5
{[%clk 01:31:24]} {[%emt 00:00:27]} 8. c3 {[%clk 01:33:01]} {[%emt 00:00:17]}
Nxe5 {[%clk 01:29:53]} {[%emt 00:02:01]} 9. Rxe5 {[%clk 01:33:22]} {[%emt
00:00:10]} d6 {[%clk 01:29:28]} {[%emt 00:00:53]} 10. Re1 {[%clk 01:33:39]}
{[%emt 00:00:14]} d5 {[%clk 01:28:57]} {[%emt 00:01:02]} 11. d4 {[%clk
01:33:57]} {[%emt 00:00:12]} O-O {[%clk 01:28:23]} {[%emt 00:01:03]} 12. Bf4
{[%clk 01:34:07]} {[%emt 00:00:20]} Bd6 {[%clk 01:27:56]} {[%emt 00:00:58]} 13.
Qf3 {[%clk 01:34:00]} {[%emt 00:00:37]} Nh4 {[%clk 01:27:27]} {[%emt 00:00:59]}
14. Qg3 {[%clk 01:34:20]} {[%emt 00:00:10]} Nf5 {[%clk 01:27:09]} {[%emt
00:00:48]} 15. Qf3 {[%clk 01:34:38]} {[%emt 00:00:12]} Nh4 {[%clk 01:26:51]}
{[%emt 00:00:47]} 16. Qg3 {[%clk 01:34:58]} {[%emt 00:00:10]} Nf5 {[%clk
01:26:37]} {[%emt 00:00:44]} 17. Qf3 {[%clk 01:35:14]} {[%emt 00:00:14]} Nh4
{[%clk 01:26:47]} {[%emt 00:00:20]} 1/2-1/2

[Event "LASK Schackstudion IM Tournament"]
[Site "Lund, Sweden"]
[Date "2022.08.20"]
[Round "9.4"]
[White "Magnusson, Jorgen"]
[Black "Kucuksari, Kaan"]
[Result "0-1"]
[TimeControl "90 minutes + 30 sec increment starting from move 1."]
[WhiteTitle "FM"]
[BlackTitle "FM"]
[WhiteFideId "1700880"]
[BlackFideId "6380166"]
[WhiteElo "2292"]
[BlackElo "2398"]

1. c4 {[%emt 00:01:56]} f5 {[%emt 00:00:24]} 2. d4 {[%emt 00:01:02]} Nf6 {[%emt
00:00:12]} 3. Nc3 {[%emt 00:00:13]} d6 {[%emt 00:00:16]} 4. Bg5 {[%emt
00:01:47]} Nbd7 {[%emt 00:02:55]} 5. Qc2 {[%emt 00:04:54]} g6 6. h4 {[%emt
00:00:10]} Bg7 {[%emt 00:12:40]} 7. O-O-O {[%emt 00:01:43]} O-O {[%emt
00:09:02]} 8. h5 {[%emt 00:03:13]} Nxh5 {[%emt 00:02:44]} 9. e4 {[%emt
00:00:37]} fxe4 {[%emt 00:12:23]} 10. Nxe4 {[%emt 00:00:39]} Ndf6 {[%emt
00:00:25]} 11. Bd3 {[%emt 00:03:49]} Bf5 {[%emt 00:09:22]} 12. Nf3 {[%emt
00:08:05]} Nxe4 {[%emt 00:04:48]} 13. Bxe4 {[%emt 00:00:18]} Qd7 {[%emt
00:00:50]} 14. Rhe1 {[%emt 00:13:46]} e6 {[%emt 00:04:09]} 15. Qd2 {[%emt
00:17:22]} Bxe4 {[%emt 00:10:39]} 16. Rxe4 {[%emt 00:00:13]} d5 {[%emt
00:00:36]} 17. Rh4 {[%emt 00:03:21]} dxc4 {[%emt 00:02:14]} 18. Bh6 {[%emt
00:01:44]} Rad8 {[%emt 00:14:27]} 19. Bxg7 {[%emt 00:06:28]} Qxg7 {[%emt
00:00:22]} 20. Qe3 {[%emt 00:02:31]} Qf6 {[%emt 00:01:23]} 21. Ng5 {[%emt
00:04:50]} Nf4 {[%emt 00:01:29]} 22. Rxf4 {[%emt 00:01:58]} Qxf4 {[%emt
00:00:11]} 23. Qxf4 Rxf4 24. Nxe6 {[%emt 00:00:17]} Rdf8 {[%emt 00:01:42]} 25.
f3 {[%emt 00:02:23]} Rh4 {[%emt 00:01:46]} 26. Nxf8 Kxf8 27. Kc2 {[%emt
00:02:39]} Rh2 {[%emt 00:00:17]} 28. Rg1 {[%emt 00:01:21]} Ke7 {[%emt
00:02:05]} 29. Kc3 {[%emt 00:00:23]} b5 30. a4 {[%emt 00:04:58]} a6 {[%emt
00:00:48]} 31. axb5 axb5 32. Re1+ {[%emt 00:05:11]} Kd6 {[%emt 00:00:05]} 33.
Re5 {[%emt 00:00:58]} Rxg2 {[%emt 00:01:44]} 34. Rxb5 {[%emt 00:00:07]} Rf2
{[%emt 00:00:13]} 35. Kxc4 Rxf3 36. Rd5+ {[%emt 00:02:42]} Kc6 {[%emt
00:00:19]} 37. Rc5+ {[%emt 00:02:00]} Kd6 {[%emt 00:00:01]} 38. Rd5+ {[%emt
00:00:13]} Kc6 {[%emt 00:00:34]} 39. Rc5+ {[%emt 00:00:06]} Kb6 {[%emt
00:00:23]} 40. Rb5+ {[%emt 00:00:12]} Ka6 {[%emt 00:00:07]} 41. Rb8 {[%emt
00:01:00]} Ka7 {[%emt 00:01:10]} 42. Rg8 {[%emt 00:00:16]} Rg3 {[%emt
00:00:55]} 43. Kc5 {[%emt 00:01:26]} Kb7 {[%emt 00:00:17]} 44. Rg7 {[%emt
00:02:11]} h5 {[%emt 00:00:30]} 45. d5 {[%emt 00:01:21]} Rg5 {[%emt 00:00:15]}
46. b4 {[%emt 00:00:20]} h4 {[%emt 00:00:22]} 47. Rh7 {[%emt 00:00:48]} Rh5
{[%emt 00:00:11]} 48. Rg7 {[%emt 00:00:13]} h3 {[%emt 00:00:12]} 0-1

[Event "LASK Schackstudion IM Tournament"]
[Site "Lund, Sweden"]
[Date "2022.08.20"]
[Round "9.5"]
[White "Jepson, Christian"]
[Black "Rozentalis, Eduardas"]
[Result "1/2-1/2"]
[TimeControl "90 minutes + 30 sec increment starting from move 1."]
[WhiteTitle "IM"]
[BlackTitle "GM"]
[WhiteFideId "1701185"]
[BlackFideId "12800023"]
[WhiteElo "2395"]
[BlackElo "2493"]

1. d4 {[%clk 01:27:15]} {[%emt 00:03:43]} Nf6 {[%clk 01:30:52]} {[%emt
00:00:08]} 2. c4 {[%clk 01:27:34]} {[%emt 00:00:11]} e6 {[%clk 01:31:17]}
{[%emt 00:00:05]} 3. Nc3 {[%clk 01:27:59]} {[%emt 00:00:05]} Bb4 {[%clk
01:31:39]} {[%emt 00:00:08]} 4. e3 {[%clk 01:28:24]} {[%emt 00:00:04]} O-O
{[%clk 01:31:08]} {[%emt 00:01:02]} 5. Bd3 {[%clk 01:28:29]} {[%emt 00:00:25]}
d5 {[%clk 01:30:57]} {[%emt 00:00:41]} 6. a3 {[%clk 01:18:25]} {[%emt
00:10:35]} Bxc3+ {[%clk 01:30:02]} {[%emt 00:01:25]} 7. bxc3 {[%clk 01:18:52]}
{[%emt 00:00:02]} c6 {[%clk 01:29:51]} {[%emt 00:00:42]} 8. cxd5 {[%clk
01:17:54]} {[%emt 00:01:28]} cxd5 {[%clk 01:29:43]} {[%emt 00:00:38]} 9. Ne2
{[%clk 01:18:14]} {[%emt 00:00:10]} b6 {[%clk 01:29:33]} {[%emt 00:00:40]} 10.
c4 {[%clk 01:16:51]} {[%emt 00:01:53]} Ba6 {[%clk 01:21:28]} {[%emt 00:08:35]}
11. cxd5 {[%clk 01:17:11]} {[%emt 00:00:09]} Qxd5 {[%clk 01:19:57]} {[%emt
00:02:01]} 12. f3 {[%clk 01:17:30]} {[%emt 00:00:11]} h6 {[%clk 01:16:49]}
{[%emt 00:03:38]} 13. e4 {[%clk 01:12:28]} {[%emt 00:05:32]} Qb7 {[%clk
01:15:51]} {[%emt 00:01:28]} 14. g4 {[%clk 01:05:07]} {[%emt 00:07:52]} Nc6
{[%clk 01:12:36]} {[%emt 00:03:44]} 15. g5 {[%clk 00:40:47]} {[%emt 00:24:50]}
hxg5 {[%clk 01:11:53]} {[%emt 00:01:13]} 16. Bxg5 {[%clk 00:41:12]} {[%emt
00:00:06]} Nh7 {[%clk 01:09:18]} {[%emt 00:03:05]} 17. Bh4 {[%clk 00:37:22]}
{[%emt 00:04:20]} f6 {[%clk 01:04:11]} {[%emt 00:05:37]} 18. O-O {[%clk
00:17:10]} {[%emt 00:20:44]} Rad8 {[%clk 00:58:10]} {[%emt 00:06:30]} 19. Rc1
{[%clk 00:15:16]} {[%emt 00:02:24]} Bxd3 {[%clk 00:45:27]} {[%emt 00:13:14]} 20.
Qxd3 {[%clk 00:15:43]} {[%emt 00:00:03]} Rfe8 {[%clk 00:45:09]} {[%emt
00:00:48]} 21. Rfd1 {[%clk 00:12:50]} {[%emt 00:03:24]} Nf8 {[%clk 00:37:12]}
{[%emt 00:08:27]} 22. Qb5 {[%clk 00:11:46]} {[%emt 00:01:35]} Na5 {[%clk
00:35:17]} {[%emt 00:02:23]} 23. Bg3 {[%clk 00:11:45]} {[%emt 00:00:32]} Re7
{[%clk 00:32:28]} {[%emt 00:03:18]} 24. Be1 {[%clk 00:11:37]} {[%emt 00:00:38]}
a6 {[%clk 00:25:42]} {[%emt 00:07:17]} 25. Qa4 {[%clk 00:11:13]} {[%emt
00:00:55]} Ng6 {[%clk 00:21:05]} {[%emt 00:05:06]} 26. Bxa5 {[%clk 00:10:43]}
{[%emt 00:01:00]} bxa5 {[%clk 00:21:33]} {[%emt 00:00:03]} 27. Qxa5 {[%clk
00:10:48]} {[%emt 00:00:25]} Rb8 {[%clk 00:21:04]} {[%emt 00:00:59]} 28. Qh5
{[%clk 00:10:22]} {[%emt 00:00:56]} Qb2 {[%clk 00:19:38]} {[%emt 00:01:55]} 29.
f4 {[%clk 00:07:27]} {[%emt 00:03:25]} Nf8 {[%clk 00:17:11]} {[%emt 00:02:57]}
30. Rc3 {[%clk 00:07:37]} {[%emt 00:00:20]} Rb3 {[%clk 00:14:12]} {[%emt
00:03:30]} 31. Rc8 {[%clk 00:04:14]} {[%emt 00:03:53]} Rb8 {[%clk 00:13:33]}
{[%emt 00:01:09]} 32. Rc3 {[%clk 00:04:42]} {[%emt 00:00:02]} Rb3 {[%clk
00:13:56]} {[%emt 00:00:07]} 33. Rc8 {[%clk 00:04:59]} {[%emt 00:00:12]} Rb8
{[%emt 00:02:34]} 34. Rc3 {[%emt 00:00:14]} Rb3 {[%emt 00:00:05]} 35. Rc8 Rb8
{[%emt 00:00:16]} 1/2-1/2